fUST/lending_fUST_20241025
["ID","MTS","AMOUNT","RATE_DAILY","PERIOD"]
[340761425,1729786202379,163.298718,0.00013973,2]
[340761466,1729786232448,-250.0,0.0001735,2]
[340761468,1729786232459,-5919.0,0.000175,2]
[340761492,1729786232469,-221.930971,0.00017568,2]
[340761493,1729786232732,-2017.2902539,0.00017595,2]
[340761494,1729786232743,-300.0,0.00018457,2]
[340761495,1729786232757,-300.0,0.00018457,2]
[340761496,1729786232767,-660.17073895,0.00018458,2]
[340761497,1729786232779,-4451.66834314,0.00018458,2]
[340761550,1729786240439,-20448.33165686,0.00018458,2]
[340761552,1729786240449,-250.0,0.00018597,2]
[340761553,1729786240459,-250.0,0.00018648,2]
[340761555,1729786240469,-500.0,0.00018678,2]
[340761557,1729786240479,-13341.1747442,0.00018679,2]
[340761558,1729786240488,-500.0,0.00018698,2]
[340761559,1729786240498,-250.0,0.00018699,2]
[340761560,1729786240508,-250.0,0.0001875,2]
[340761561,1729786240517,-250.0,0.00018801,2]
[340761562,1729786240527,-250.0,0.00018852,2]
[340761563,1729786240536,-250.0,0.00018903,2]
[340761564,1729786240545,-250.0,0.00018954,2]
[340761565,1729786240555,-234.6,0.0001896,2]
[340761566,1729786240564,-250.0,0.00019005,2]
[340761567,1729786240573,-250.0,0.00019056,2]
[340761568,1729786240587,-250.0,0.00019107,2]
[340761569,1729786240596,-250.0,0.00019158,2]
[340761570,1729786240605,-250.0,0.00019209,2]
[340761571,1729786240615,-250.0,0.0001926,2]
[340761572,1729786240624,-250.0,0.00019311,2]
[340761573,1729786240633,-250.0,0.00019362,2]
[340761574,1729786240642,-250.0,0.00019413,2]
[340761575,1729786240652,-250.0,0.00019464,2]
[340761576,1729786240661,-250.0,0.00019515,2]
[340761577,1729786240671,-250.0,0.00019566,2]
[340761578,1729786240682,-183.50754533,0.0001988,2]
[340761579,1729786240693,-6786.53938388,0.00019918,2]
[340761580,1729786240702,-659.21,0.0001997,3]
[340761581,1729786240711,-234.6,0.0001998,2]
[340761582,1729786240721,-3781.0096685,0.0001998,3]
[340761583,1729786240731,-29917.29210818,0.0001998,3]
[340761584,1729786240744,-7204.32089042,0.0001998,3]
[340761585,1729786240755,-500.0,0.00019989,2]
[340761586,1729786240767,-500.0,0.00019989,2]
[340761587,1729786240779,-500.0,0.00019989,2]
[340761588,1729786240791,-500.0,0.00019989,2]
[340761589,1729786240802,-500.0,0.00019989,2]
[340761590,1729786240812,-500.0,0.00019989,2]
[340761591,1729786240823,-500.0,0.00019989,2]
[340761592,1729786240837,-500.0,0.00019989,2]
[340761593,1729786240847,-500.0,0.00019989,2]
[340761594,1729786240857,-500.0,0.00019989,2]
[340761595,1729786240866,-500.0,0.00019989,2]
[340761596,1729786240877,-500.0,0.00019989,2]
[340761597,1729786240886,-500.0,0.00019989,2]
[340761598,1729786240897,-414.95510885,0.00019989,2]
[340761599,1729786240907,-234.6,0.0001999,2]
[340761600,1729786240916,-7562.019337,0.0001999,3]
[340761601,1729786240927,-44878.46320346,0.0001999,3]
[340761628,1729786815610,163.298718,0.00013973,2]
[340761728,1729787433492,-650.26151516,0.00017276,2]
[340761729,1729787433505,-2349.73848484,0.00017276,2]
[340761730,1729787433518,-300.0,0.00017884,2]
[340761731,1729787433528,-300.0,0.00017884,2]
[340761732,1729787433539,-10001.36378442,0.00017885,2]
[340761733,1729787433567,-1154.83631058,0.00017885,2]
[340761734,1729787433577,-203.619146,0.00017928,2]
[340761735,1729787433586,-203.619146,0.00017978,2]
[340761736,1729787433596,-203.619146,0.00018027,2]
[340761737,1729787433606,-203.619146,0.00018076,2]
[340761738,1729787433616,-203.619146,0.00018125,2]
[340761739,1729787433625,-203.619146,0.00018174,2]
[340761740,1729787433636,-203.619146,0.00018224,2]
[340761741,1729787433645,-203.619146,0.00018273,2]
[340761742,1729787433655,-5467.06636439,0.00018311,2]
[340761743,1729787433665,-203.619146,0.00018322,2]
[340761744,1729787433675,-203.619146,0.00018371,2]
[340761745,1729787433684,-234.62,0.00018385,2]
[340761746,1729787433693,-625.30433866,0.00018394,2]
[340761747,1729787433702,-24900.0,0.00018395,2]
[340761748,1729787433712,-203.619146,0.0001842,2]
[340761749,1729787433721,-69.13022622,0.00018469,2]
[340761760,1729787438911,-134.48891978,0.00018469,2]
[340761761,1729787438921,-203.619146,0.00018519,2]
[340761762,1729787438930,-203.619146,0.00018568,2]
[340761763,1729787438939,-11156.200095,0.0001857,2]
[340761764,1729787438948,-203.619146,0.00018617,2]
[340761765,1729787438958,-203.619146,0.00018666,2]
[340761766,1729787438967,-203.619146,0.00018715,2]
[340761767,1729787438976,-203.619146,0.00018764,2]
[340761768,1729787438985,-203.619146,0.00018814,2]
[340761769,1729787438994,-203.619146,0.00018863,2]
[340761770,1729787439003,-11156.200095,0.00019255,2]
[340761771,1729787439012,-8891.1746536,0.00019406,2]
[340761772,1729787439021,-420.0,0.00019516,2]
[340761773,1729787439030,-1390.520172,0.00019598,2]
[340761774,1729787439040,-8891.1746537,0.00019599,2]
[340761775,1729787439049,-151.0,0.00019599,2]
[340761776,1729787439059,-324.611442,0.00019599,2]
[340761777,1729787439068,-324.611442,0.00019599,2]
[340761778,1729787439078,-151.0,0.00019599,2]
[340761779,1729787439087,-151.0,0.00019599,2]
[340761780,1729787439096,-420.0,0.00019673,2]
[340761781,1729787439105,-500.0,0.00019969,2]
[340761782,1729787439114,-363.121,0.00019969,2]
[340761783,1729787439124,-500.0,0.00019969,2]
[340761784,1729787439132,-500.0,0.00019969,2]
[340761785,1729787439141,-500.0,0.00019969,2]
[340761786,1729787439151,-500.0,0.00019969,2]
[340761787,1729787439160,-500.0,0.00019969,2]
[340761788,1729787439169,-500.0,0.00019969,2]
[340761789,1729787439178,-500.0,0.00019969,2]
[340761790,1729787439191,-500.0,0.00019969,2]
[340761791,1729787439200,-500.0,0.00019969,2]
[340761792,1729787439209,-500.0,0.00019969,2]
[340761793,1729787439218,-500.0,0.00019969,2]
[340761794,1729787439227,-500.0,0.00019969,2]
[340761795,1729787439237,-376.3087111,0.00019969,2]
[340761796,1729787439246,-500.0,0.00019969,2]
[340761797,1729787439259,-500.0,0.00019969,2]
[340761798,1729787439268,-500.0,0.00019969,2]
[340761799,1729787439277,-500.0,0.00019969,2]
[340761800,1729787439288,-500.0,0.00019969,2]
[340761801,1729787439298,-500.0,0.00019969,2]
[340761802,1729787439307,-500.0,0.00019969,2]
[340761803,1729787439317,-500.0,0.00019969,2]
[340761804,1729787439326,-500.0,0.00019969,2]
[340761805,1729787439336,-500.0,0.00019969,2]
[340761806,1729787439346,-500.0,0.00019969,2]
[340761807,1729787439355,-500.0,0.00019969,2]
[340761808,1729787439365,-500.0,0.00019969,2]
[340761809,1729787439375,-650.00000004,0.00019969,2]
[340761810,1729787439384,-500.0,0.00019969,2]
[340761811,1729787439393,-500.0,0.00019969,2]
[340761812,1729787439402,-544.0130456,0.00019969,2]
[340761813,1729787439411,-292.6326548,0.00019969,2]
[340761814,1729787439420,-500.0,0.00019969,2]
[340761815,1729787439430,-500.0,0.00019969,2]
[340761816,1729787439439,-500.0,0.00019969,2]
[340761817,1729787439449,-500.0,0.00019969,2]
[340761818,1729787439458,-500.0,0.00019969,2]
[340761819,1729787439467,-500.0,0.00019969,2]
[340761820,1729787439477,-500.0,0.00019969,2]
[340761821,1729787439486,-500.0,0.00019969,2]
[340761822,1729787439495,-500.0,0.00019969,2]
[340761823,1729787439504,-500.0,0.00019969,2]
[340761824,1729787439513,-414.95510885,0.00019969,2]
[340761825,1729787439523,-500.0,0.00019969,2]
[340761826,1729787439532,-500.0,0.00019969,2]
[340761827,1729787439542,-208.67767337,0.00019969,2]
[340761828,1729787439552,-500.0,0.00019969,2]
[340761829,1729787439561,-500.0,0.00019969,2]
[340761830,1729787439571,-500.0,0.00019969,2]
[340761831,1729787439580,-500.0,0.00019969,2]
[340761832,1729787439589,-500.0,0.00019969,2]
[340761833,1729787439598,-500.0,0.00019969,2]
[340761834,1729787439608,-500.0,0.00019969,2]
[340761835,1729787439617,-500.0,0.00019969,2]
[340761836,1729787439626,-500.0,0.00019969,2]
[340761837,1729787439635,-500.0,0.00019969,2]
[340761838,1729787439645,-500.0,0.00019969,2]
[340761839,1729787439655,-500.0,0.00019969,2]
[340761840,1729787439665,-500.0,0.00019969,2]
[340761841,1729787439674,-631.08595191,0.00019969,2]
[340761842,1729787439683,-500.0,0.00019969,2]
[340761843,1729787439692,-500.0,0.00019969,2]
[340761844,1729787439704,-500.0,0.00019969,2]
[340761845,1729787439714,-500.0,0.00019969,2]
[340761846,1729787439723,-500.0,0.00019969,2]
[340761847,1729787439732,-500.0,0.00019969,2]
[340761848,1729787439741,-500.0,0.00019969,2]
[340761849,1729787439751,-500.0,0.00019969,2]
[340761850,1729787439760,-500.0,0.00019969,2]
[340761851,1729787439770,-500.0,0.00019969,2]
[340761852,1729787439779,-500.0,0.00019969,2]
[340761853,1729787439789,-500.0,0.00019969,2]
[340761854,1729787439798,-500.0,0.00019969,2]
[340761855,1729787439807,-500.0,0.00019969,2]
[340761856,1729787439816,-500.0,0.00019969,2]
[340761857,1729787439826,-500.0,0.00019969,2]
[340761858,1729787439835,-500.0,0.00019969,2]
[340761859,1729787439845,-500.0,0.00019969,2]
[340761860,1729787439854,-500.0,0.00019969,2]
[340761861,1729787439863,-500.0,0.00019969,2]
[340761862,1729787439873,-500.0,0.00019969,2]
[340761863,1729787439882,-500.0,0.00019969,2]
[340761864,1729787439892,-500.0,0.00019969,2]
[340761865,1729787439901,-500.0,0.00019969,2]
[340761866,1729787439910,-500.0,0.00019969,2]
[340761867,1729787439919,-500.0,0.00019969,2]
[340761868,1729787439930,-500.0,0.00019969,2]
[340761869,1729787439940,-500.0,0.00019969,2]
[340761870,1729787439949,-500.0,0.00019969,2]
[340761873,1729787439959,-500.0,0.00019969,2]
[340761874,1729787439967,-500.0,0.00019969,2]
[340761875,1729787439977,-500.0,0.00019969,2]
[340761876,1729787439986,-500.0,0.00019969,2]
[340761877,1729787439995,-500.0,0.00019969,2]
[340761878,1729787440007,-500.0,0.00019969,2]
[340761880,1729787440017,-500.0,0.00019969,2]
[340761882,1729787440026,-500.0,0.00019969,2]
[340761883,1729787440036,-500.0,0.00019969,2]
[340761884,1729787440047,-500.0,0.00019969,2]
[340761885,1729787440057,-500.0,0.00019969,2]
[340761886,1729787440066,-500.0,0.00019969,2]
[340761887,1729787440077,-500.0,0.00019969,2]
[340761888,1729787440087,-500.0,0.00019969,2]
[340761889,1729787440098,-500.0,0.00019969,2]
[340761890,1729787440109,-500.0,0.00019969,2]
[340761891,1729787440120,-500.0,0.00019969,2]
[340761892,1729787440130,-500.0,0.00019969,2]
[340761893,1729787440139,-500.0,0.00019969,2]
[340761894,1729787440152,-500.0,0.00019969,2]
[340761895,1729787440163,-500.0,0.00019969,2]
[340761896,1729787440175,-151.0,0.0001997,2]
[340761897,1729787440185,-881.087828,0.0001997,2]
[340761898,1729787440194,-881.087828,0.0001997,2]
[340761899,1729787440203,-377.476425,0.0001997,2]
[340761901,1729787440213,-377.476425,0.0001997,2]
[340761903,1729787440222,-151.0,0.0001997,2]
[340761905,1729787440232,-151.0,0.0001997,2]
[340761906,1729787440241,-324.611442,0.0001997,2]
[340761908,1729787440251,-324.611442,0.0001997,2]
[340761909,1729787440264,-324.611442,0.0001997,2]
[340761910,1729787440273,-324.611442,0.0001997,2]
[340761911,1729787440283,-151.0,0.0001997,2]
[340761912,1729787440293,-151.0,0.0001997,2]
[340761913,1729787440303,-151.0,0.0001997,2]
[340761914,1729787440312,-151.0,0.0001997,2]
[340761915,1729787440321,-16184.9508046,0.0001997,3]
[340761916,1729787440332,-65744.5538541,0.0001997,3]
[340761917,1729787440342,-500.0,0.00019973,2]
[340761918,1729787440352,-500.0,0.00019973,2]
[340761919,1729787440361,-500.0,0.00019973,2]
[340761920,1729787440370,-217.28552876,0.00019977,2]
[340761921,1729787440380,-191.81866968,0.00019977,2]
[340761922,1729787440390,-560.78767087,0.00019977,2]
[340761923,1729787440399,-151.0,0.00019978,2]
[340761924,1729787440408,-153.521561,0.00019978,2]
[340761925,1729787440417,-881.087828,0.00019978,2]
[340761926,1729787440427,-881.087828,0.00019978,2]
[340761927,1729787440436,-881.087828,0.00019978,2]
[340761928,1729787440446,-881.087828,0.00019978,2]
[340761929,1729787440455,-881.087828,0.00019978,2]
[340761930,1729787440464,-881.087828,0.00019978,2]
[340761931,1729787440473,-881.087828,0.00019978,2]
[340761932,1729787440483,-881.087828,0.00019978,2]
[340761933,1729787440492,-881.087828,0.00019978,2]
[340761934,1729787440501,-881.087828,0.00019978,2]
[340761935,1729787440511,-881.087828,0.00019978,2]
[340761936,1729787440520,-881.087828,0.00019978,2]
[340761937,1729787440530,-881.087828,0.00019978,2]
[340761938,1729787440540,-881.087828,0.00019978,2]
[340761939,1729787440550,-377.476425,0.00019978,2]
[340761940,1729787440559,-377.476425,0.00019978,2]
[340761941,1729787440569,-377.476425,0.00019978,2]
[340761942,1729787440578,-377.476425,0.00019978,2]
[340761943,1729787440587,-377.476425,0.00019978,2]
[340761944,1729787440596,-377.476425,0.00019978,2]
[340761945,1729787440605,-377.476425,0.00019978,2]
[340761946,1729787440614,-377.476425,0.00019978,2]
[340761947,1729787440624,-377.476425,0.00019978,2]
[340761948,1729787440633,-377.476425,0.00019978,2]
[340761949,1729787440642,-377.476425,0.00019978,2]
[340761950,1729787440651,-377.476425,0.00019978,2]
[340761951,1729787440661,-377.476425,0.00019978,2]
[340761952,1729787440671,-377.476425,0.00019978,2]
[340761953,1729787440680,-324.611442,0.00019978,2]
[340761954,1729787440690,-324.611442,0.00019978,2]
[340761955,1729787440702,-324.611442,0.00019978,2]
[340761956,1729787440712,-324.611442,0.00019978,2]
[340761957,1729787440722,-324.611442,0.00019978,2]
[340761958,1729787440731,-324.611442,0.00019978,2]
[340761959,1729787440740,-324.611442,0.00019978,2]
[340761960,1729787440749,-324.611442,0.00019978,2]
[340761961,1729787440758,-324.611442,0.00019978,2]
[340761962,1729787440768,-324.611442,0.00019978,2]
[340761963,1729787440948,-324.611442,0.00019978,2]
[340761964,1729787440958,-324.611442,0.00019978,2]
[340761965,1729787440967,-324.611442,0.00019978,2]
[340761966,1729787440976,-324.611444,0.00019978,2]
[340761967,1729787440985,-151.0,0.00019978,2]
[340761968,1729787440995,-151.0,0.00019978,2]
[340761969,1729787441004,-151.0,0.00019978,2]
[340761970,1729787441013,-151.0,0.00019978,2]
[340761971,1729787441022,-151.0,0.00019978,2]
[340761972,1729787441031,-151.0,0.00019978,2]
[340761973,1729787441040,-881.087828,0.00019979,2]
[340761974,1729787441050,-881.087828,0.00019979,2]
[340761975,1729787441059,-881.087828,0.00019979,2]
[340761976,1729787441068,-881.08783,0.00019979,2]
[340761977,1729787441077,-377.476425,0.00019979,2]
[340761978,1729787441086,-377.476425,0.00019979,2]
[340761979,1729787441096,-377.476425,0.00019979,2]
[340761980,1729787441105,-377.476429,0.00019979,2]
[340761981,1729787441115,-32369.9016092,0.00019979,3]
[340761982,1729787441124,-131489.107708,0.00019979,3]
[340761983,1729787441134,-151.0,0.0001998,2]
[340761984,1729787441144,-171.695374,0.0001998,2]
[340761985,1729787441154,-182.795476,0.0001998,2]
[340761986,1729787441163,-182.795476,0.0001998,2]
[340761987,1729787441172,-151.0,0.0001998,2]
[340761988,1729787441181,-756.990096,0.0001998,2]
[340761989,1729787441191,-756.990096,0.0001998,2]
[340761990,1729787441200,-2832.944913,0.0001998,2]
[340761991,1729787441210,-2832.944913,0.0001998,2]
[340761992,1729787441219,-32369.9016092,0.0001998,3]
[340761993,1729787441228,-131489.107708,0.0001998,3]
[340761994,1729787441238,-151.0,0.00019989,2]
[340761995,1729787441248,-151.0,0.00019989,2]
[340761996,1729787441262,-151.0,0.00019989,2]
[340761997,1729787441272,-151.0,0.00019989,2]
[340761998,1729787441281,-182.795476,0.00019989,2]
[340761999,1729787441291,-182.795476,0.00019989,2]
[340762000,1729787441302,-182.795476,0.00019989,2]
[340762001,1729787441312,-182.795476,0.00019989,2]
[340762002,1729787441322,-182.795476,0.00019989,2]
[340762003,1729787441333,-182.795476,0.00019989,2]
[340762004,1729787441342,-182.795476,0.00019989,2]
[340762005,1729787441352,-182.795476,0.00019989,2]
[340762006,1729787441361,-756.990096,0.00019989,2]
[340762007,1729787441371,-756.990096,0.00019989,2]
[340762008,1729787441380,-756.990096,0.00019989,2]
[340762009,1729787441390,-756.990096,0.00019989,2]
[340762010,1729787441401,-756.990096,0.00019989,2]
[340762011,1729787441410,-756.990096,0.00019989,2]
[340762012,1729787441420,-756.990096,0.00019989,2]
[340762013,1729787441429,-756.990096,0.00019989,2]
[340762014,1729787441439,-2832.944913,0.00019989,2]
[340762015,1729787441448,-2832.944913,0.00019989,2]
[340762016,1729787441458,-2832.944913,0.00019989,2]
[340762017,1729787441467,-2832.944913,0.00019989,2]
[340762018,1729787441477,-2832.944913,0.00019989,2]
[340762019,1729787441486,-2832.944913,0.00019989,2]
[340762020,1729787441495,-2832.944913,0.00019989,2]
[340762021,1729787441504,-2832.944913,0.00019989,2]
[340762022,1729787441514,-151.0,0.0001999,2]
[340762023,1729787441524,-151.0,0.0001999,2]
[340762024,1729787441534,-151.0,0.0001999,2]
[340762025,1729787441543,-151.0,0.0001999,2]
[340762026,1729787441553,-271.570262,0.0001999,2]
[340762027,1729787441562,-151.0,0.0001999,2]
[340762028,1729787441571,-151.0,0.0001999,2]
[340762029,1729787441580,-151.0,0.0001999,2]
[340762030,1729787441589,-151.0,0.0001999,2]
[340762031,1729787441599,-151.0,0.0001999,2]
[340762032,1729787441608,-151.0,0.0001999,2]
[340762033,1729787441617,-151.0,0.0001999,2]
[340762034,1729787441626,-151.0,0.0001999,2]
[340762036,1729787441635,-151.0,0.0001999,2]
[340762037,1729787441644,-151.0,0.0001999,2]
[340762038,1729787441654,-151.0,0.0001999,2]
[340762039,1729787441663,-236.17837,0.0001999,2]
[340762040,1729787441676,-999.58189,0.0001999,2]
[340762041,1729787441689,-999.58189,0.0001999,2]
[340762042,1729787441700,-999.58189,0.0001999,2]
[340762043,1729787441710,-151.0,0.0001999,2]
[340762044,1729787441719,-999.58189,0.0001999,2]
[340762045,1729787441728,-151.0,0.0001999,2]
[340762046,1729787441737,-151.0,0.0001999,2]
[340762047,1729787441747,-151.0,0.0001999,2]
[340762048,1729787441756,-194.249384,0.0001999,2]
[340762049,1729787441767,-194.249384,0.0001999,2]
[340762050,1729787441777,-151.0,0.0001999,2]
[340762051,1729787441789,-194.249384,0.0001999,2]
[340762052,1729787441803,-293.585546,0.0001999,2]
[340762053,1729787441812,-194.249384,0.0001999,2]
[340762054,1729787441821,-151.0,0.0001999,2]
[340762055,1729787441830,-151.0,0.0001999,2]
[340762056,1729787441839,-151.0,0.0001999,2]
[340762057,1729787441849,-151.0,0.0001999,2]
[340762058,1729787441858,-151.0,0.0001999,2]
[340762059,1729787441866,-151.0,0.0001999,2]
[340762060,1729787441876,-151.0,0.0001999,2]
[340762061,1729787441886,-191.797507,0.0001999,2]
[340762062,1729787441895,-395.532861,0.0001999,2]
[340762063,1729787441904,-395.532861,0.0001999,2]
[340762064,1729787441913,-395.532861,0.0001999,2]
[340762065,1729787441923,-395.532861,0.0001999,2]
[340762066,1729787441933,-151.0,0.0001999,2]
[340762067,1729787441944,-151.0,0.0001999,2]
[340762068,1729787441954,-151.0,0.0001999,2]
[340762069,1729787441963,-151.0,0.0001999,2]
[340762070,1729787441975,-151.0,0.0001999,2]
[340762071,1729787441986,-151.0,0.0001999,2]
[340762072,1729787441996,-151.0,0.0001999,2]
[340762073,1729787442005,-794.688574,0.0001999,2]
[340762074,1729787442016,-794.688574,0.0001999,2]
[340762075,1729787442026,-794.688574,0.0001999,2]
[340762076,1729787442037,-794.688574,0.0001999,2]
[340762077,1729787442049,-794.688574,0.0001999,2]
[340762078,1729787442059,-794.688574,0.0001999,2]
[340762079,1729787442069,-151.0,0.0001999,2]
[340762080,1729787442078,-151.0,0.0001999,2]
[340762081,1729787442088,-151.0,0.0001999,2]
[340762082,1729787442097,-151.0,0.0001999,2]
[340762083,1729787442107,-151.0,0.0001999,2]
[340762084,1729787442117,-151.0,0.0001999,2]
[340762085,1729787442127,-162.437624,0.0001999,2]
[340762086,1729787442138,-151.0,0.0001999,2]
[340762087,1729787442148,-151.0,0.0001999,2]
[340762088,1729787442159,-151.0,0.0001999,2]
[340762089,1729787442170,-151.0,0.0001999,2]
[340762090,1729787442180,-151.0,0.0001999,2]
[340762091,1729787442190,-151.0,0.0001999,2]
[340762092,1729787442201,-151.0,0.0001999,2]
[340762093,1729787442213,-151.0,0.0001999,2]
[340762094,1729787442223,-151.0,0.0001999,2]
[340762095,1729787442233,-243.433726,0.0001999,2]
[340762096,1729787442243,-151.0,0.0001999,2]
[340762097,1729787442255,-151.0,0.0001999,2]
[340762098,1729787442267,-225.623421,0.0001999,2]
[340762099,1729787442277,-237.316022,0.0001999,2]
[340762100,1729787442288,-237.316022,0.0001999,2]
[340762101,1729787442299,-237.316022,0.0001999,2]
[340762102,1729787442309,-237.316022,0.0001999,2]
[340762103,1729787442319,-237.316022,0.0001999,2]
[340762104,1729787442331,-237.316022,0.0001999,2]
[340762105,1729787442344,-32369.9016092,0.0001999,3]
[340762106,1729787442355,-1358.217049,0.0001999,2]
[340762107,1729787442366,-1358.217049,0.0001999,2]
[340762108,1729787442375,-1358.217049,0.0001999,2]
[340762109,1729787442384,-1358.217049,0.0001999,2]
[340762110,1729787442395,-1358.217049,0.0001999,2]
[340762111,1729787442406,-1358.217049,0.0001999,2]
[340762112,1729787442417,-151.0,0.0001999,2]
[340762113,1729787442427,-182.795476,0.0001999,2]
[340762114,1729787442439,-182.795476,0.0001999,2]
[340762115,1729787442452,-182.795476,0.0001999,2]
[340762116,1729787442462,-182.795476,0.0001999,2]
[340762117,1729787442473,-182.795476,0.0001999,2]
[340762118,1729787442484,-182.795476,0.0001999,2]
[340762119,1729787442494,-756.990096,0.0001999,2]
[340762120,1729787442503,-756.990096,0.0001999,2]
[340762121,1729787442514,-756.990096,0.0001999,2]
[340762122,1729787442524,-756.990096,0.0001999,2]
[340762123,1729787442534,-756.990096,0.0001999,2]
[340762124,1729787442545,-756.990096,0.0001999,2]
[340762125,1729787442554,-2832.944913,0.0001999,2]
[340762126,1729787442564,-2832.944913,0.0001999,2]
[340762127,1729787442574,-2832.944913,0.0001999,2]
[340762128,1729787442584,-2832.944913,0.0001999,2]
[340762129,1729787442594,-2832.944913,0.0001999,2]
[340762130,1729787442604,-2832.944913,0.0001999,2]
[340762131,1729787442615,-94565.00962089,0.0002,2]
[340762132,1729787442625,-402.384951,0.0002,2]
[340762133,1729787442634,-402.384951,0.0002,2]
[340762134,1729787442644,-151.0,0.0002,2]
[340762135,1729787442654,-212.281607,0.0002,2]
[340762136,1729787442665,-151.0,0.0002,2]
[340762137,1729787442675,-151.0,0.0002,2]
[340762138,1729787442687,-220.29866,0.0002,2]
[340762139,1729787442697,-151.0,0.0002,2]
[340762140,1729787442707,-258.563972,0.0002,2]
[340762141,1729787442717,-151.0,0.0002,2]
[340762142,1729787442727,-151.0,0.0002,2]
[340762143,1729787442736,-151.0,0.0002,2]
[340762144,1729787442746,-151.0,0.0002,2]
[340762145,1729787442755,-151.0,0.0002,2]
[340762146,1729787442764,-999.58189,0.0002,2]
[340762147,1729787442774,-999.58189,0.0002,2]
[340762148,1729787442783,-151.0,0.0002,2]
[340762150,1729787442794,-151.0,0.0002,2]
[340762151,1729787442804,-194.249384,0.0002,2]
[340762152,1729787442813,-194.249384,0.0002,2]
[340762153,1729787442823,-151.0,0.0002,2]
[340762154,1729787442832,-151.0,0.0002,2]
[340762155,1729787442841,-151.0,0.0002,2]
[340762157,1729787442851,-151.0,0.0002,2]
[340762159,1729787442860,-151.0,0.0002,2]
[340762160,1729787442869,-151.0,0.0002,2]
[340762162,1729787442878,-395.532861,0.0002,2]
[340762163,1729787442888,-395.532861,0.0002,2]
[340762164,1729787442897,-395.532861,0.0002,2]
[340762165,1729787442906,-395.532861,0.0002,2]
[340762166,1729787442916,-151.0,0.0002,2]
[340762167,1729787442927,-151.0,0.0002,2]
[340762168,1729787442936,-151.0,0.0002,2]
[340762169,1729787442946,-151.0,0.0002,2]
[340762170,1729787442956,-295.082534,0.0002,2]
[340762171,1729787442966,-794.688574,0.0002,2]
[340762172,1729787442975,-794.688574,0.0002,2]
[340762173,1729787442985,-794.688574,0.0002,2]
[340762174,1729787442994,-794.688574,0.0002,2]
[340762175,1729787443004,-151.0,0.0002,2]
[340762177,1729787443013,-151.0,0.0002,2]
[340762178,1729787443022,-151.0,0.0002,2]
[340762179,1729787443032,-151.0,0.0002,2]
[340762180,1729787443042,-218.181008,0.0002,2]
[340762181,1729787443051,-151.0,0.0002,2]
[340762182,1729787443060,-151.0,0.0002,2]
[340762183,1729787443070,-237.316022,0.0002,2]
[340762184,1729787443079,-237.316022,0.0002,2]
[340762185,1729787443088,-237.316022,0.0002,2]
[340762186,1729787443098,-237.316022,0.0002,2]
[340762187,1729787443107,-1358.217049,0.0002,2]
[340762188,1729787443117,-1358.217049,0.0002,2]
[340762190,1729787443126,-1358.217049,0.0002,2]
[340762192,1729787443135,-1358.217049,0.0002,2]
[340762194,1729787443144,-182.795476,0.0002,2]
[340762196,1729787443154,-182.795476,0.0002,2]